bitfinex/quotes_BTCUSD_20250903
["timestamp","ask_amount","ask_price","bid_price","bid_amount"]
[1756890613960,1.33946085,111150.0,111140.0,0.003]
[1756890614361,1.33946085,111150.0,111140.0,0.001]
[1756890614498,0.17995321,111140.0,111130.0,0.21956]
[1756890614700,0.81887083,111140.0,111130.0,0.22478]
[1756890615337,0.84591976,111140.0,111130.0,0.22478]
[1756890615693,0.84591976,111140.0,111130.0,0.22167]
[1756890616000,0.84908976,111140.0,111130.0,0.22367]
[1756890616420,0.84908976,111140.0,111130.0,0.22467]
[1756890618916,0.84908976,111140.0,111130.0,0.22463]
[1756890620742,0.84591976,111140.0,111130.0,0.22463]
[1756890621046,0.84908976,111140.0,111130.0,0.22463]
[1756890630979,0.02902893,111140.0,111130.0,0.4045994]
[1756890631179,0.84591976,111140.0,111130.0,0.4045994]
[1756890631999,0.84591976,111140.0,111130.0,0.4077094]
[1756890635715,0.02704893,111140.0,111130.0,0.49962539]
[1756890636621,0.45172454,111140.0,111130.0,0.49962539]
[1756890643032,0.63695775,111140.0,111130.0,0.34404539]
[1756890643255,0.63695775,111140.0,111130.0,0.49436539]
[1756890643479,0.63695775,111140.0,111130.0,0.42520539]
[1756890646009,0.63695775,111140.0,111130.0,0.09491599]
[1756890646217,0.97695775,111140.0,111130.0,0.15332]
[1756890647684,0.97695775,111140.0,111130.0,0.003]
[1756890647934,0.97695775,111140.0,111130.0,0.15332]
[1756890649026,0.55228214,111140.0,111130.0,0.15332]
[1756890649242,0.97695775,111140.0,111130.0,0.15332]
[1756890655171,1.12727775,111140.0,111130.0,0.15332]
[1756890657049,0.97695775,111140.0,111130.0,0.15332]
[1756890667143,0.55228214,111140.0,111130.0,0.003]
[1756890667348,0.97695775,111140.0,111130.0,0.003]
[1756890669002,0.55228214,111140.0,111130.0,0.003]
[1756890669399,0.97695775,111140.0,111130.0,0.003]
[1756890669603,0.97695775,111140.0,111130.0,0.15332]
[1756890669812,0.97695775,111140.0,111130.0,0.003]
[1756890670014,0.97695775,111140.0,111130.0,0.15332]
[1756890670221,1.12727775,111140.0,111130.0,0.003]
[1756890674086,0.97695775,111140.0,111130.0,0.003]
[1756890677339,1.12727775,111140.0,111130.0,0.003]
[1756890678091,0.97695775,111140.0,111130.0,0.003]
[1756890678298,0.97695775,111140.0,111130.0,0.00507]
[1756890679000,0.97695775,111140.0,111130.0,0.003]
[1756890679921,1.12727775,111140.0,111130.0,0.003]
[1756890690309,0.36704893,111140.0,111130.0,0.00507]
[1756890690513,0.36704893,111140.0,111130.0,0.282405]
[1756890690514,0.02704893,111140.0,111130.0,0.282405]
[1756890690797,0.02704893,111140.0,111130.0,0.28015539]
[1756890691380,0.45172454,111140.0,111130.0,0.28015539]
[1756890691995,0.42467561,111140.0,111130.0,0.28015539]
[1756890692207,0.60966882,111140.0,111130.0,0.15336]
[1756890692629,0.60966882,111140.0,111130.0,0.15543]
[1756890692834,0.63367718,111140.0,111130.0,0.3353994]
[1756890693045,0.63167718,111140.0,111130.0,0.3385994]
[1756890693666,0.63367718,111140.0,111130.0,0.3385994]
[1756890693918,0.63367718,111140.0,111130.0,0.3353994]
[1756890695558,0.97367718,111140.0,111130.0,0.3353994]
[1756890696154,0.97671718,111140.0,111130.0,0.15551]
[1756890697290,0.97671718,111140.0,111130.0,0.003]
[1756890697482,1.18912781,111140.0,111130.0,0.1534]
[1756890697691,0.55204157,111140.0,111130.0,0.1534]
[1756890697930,1.18912781,111140.0,111130.0,0.1534]
[1756890700809,1.18912781,111140.0,111130.0,0.003]
[1756890701046,1.33996781,111140.0,111130.0,0.003]
[1756890701281,1.65851093,111140.0,111130.0,0.003]
[1756890701481,1.33996781,111140.0,111130.0,0.003]
[1756890702995,1.65851093,111140.0,111130.0,0.003]
[1756890704308,0.55204157,111140.0,111130.0,0.003]
[1756890704524,1.34004781,111140.0,111130.0,0.003]
[1756890705009,1.65859093,111140.0,111130.0,0.003]
[1756890706881,1.65859093,111140.0,111130.0,0.001]
[1756890707090,0.34,111120.0,111110.0,0.41232047]
[1756890707293,1.15707184,111120.0,111110.0,0.50423646]
[1756890707496,1.15707184,111120.0,111110.0,0.50632646]
[1756890707709,1.15707184,111120.0,111110.0,0.49732637]
[1756890707883,1.18412403,111120.0,111110.0,0.49732637]
[1756890708304,1.18417078,111120.0,111110.0,0.49732637]
[1756890708746,1.18417078,111120.0,111110.0,0.49832637]
[1756890708986,1.18417078,111120.0,111110.0,0.50032637]
[1756890709997,1.19331794,111120.0,111110.0,0.50032637]
[1756890711144,1.19331794,111120.0,111110.0,0.16411599]
[1756890711145,1.51722106,111120.0,111110.0,0.16411599]
[1756890711382,1.51722106,111120.0,111110.0,0.2236]
[1756890713348,1.51722106,111120.0,111110.0,0.1544]
[1756890713801,1.19867794,111120.0,111110.0,0.15649]
[1756890713956,1.19867794,111120.0,111110.0,0.1544]
[1756890716645,1.19867794,111120.0,111110.0,0.15649]
[1756890717365,1.19867794,111120.0,111110.0,0.1544]
[1756890718601,1.19867794,111120.0,111110.0,0.15649]
[1756890719253,1.19867794,111120.0,111110.0,0.1544]
[1756890721129,1.19867794,111120.0,111110.0,0.15649]
[1756890722530,1.19544794,111120.0,111110.0,0.15649]
[1756890722658,1.19867794,111120.0,111110.0,0.15649]
[1756890723069,1.19544794,111120.0,111110.0,0.3364918]
[1756890723269,1.19544794,111120.0,111110.0,0.3396518]
[1756890724192,0.5583617,111120.0,111110.0,0.3364918]
[1756890724428,1.19544794,111120.0,111110.0,0.3364918]
[1756890726123,1.19544794,111120.0,111110.0,0.15649]
[1756890726330,1.19867794,111120.0,111110.0,0.1544]
[1756890731110,1.19544794,111120.0,111110.0,0.3395918]
[1756890731535,1.19544794,111120.0,111110.0,0.3364518]
[1756890732395,0.5583617,111120.0,111110.0,0.3364518]
[1756890732573,1.19859794,111120.0,111110.0,0.3364518]
[1756890736690,1.19859794,111120.0,111110.0,0.1544]
[1756890736909,1.19859794,111120.0,111110.0,0.3344018]
[1756890741158,1.51714106,111120.0,111110.0,0.003]
[1756890741401,1.66822106,111120.0,111110.0,0.003]
[1756890748191,0.7125917,111120.0,111110.0,0.003]
[1756890748403,1.69675649,111120.0,111110.0,0.003]
[1756890748618,0.74112713,111120.0,111110.0,0.003]
[1756890748816,1.69675649,111120.0,111110.0,0.003]
[1756890749030,1.54567649,111120.0,111110.0,0.003]
[1756890749197,1.69975649,111120.0,111110.0,0.003]
[1756890749406,1.69975649,111120.0,111110.0,0.002]
[1756890749778,1.54567649,111120.0,111110.0,0.002]
[1756890749970,1.67130106,111120.0,111110.0,0.002]
[1756890751062,0.5200018,111110.0,111100.0,0.00314]
[1756890751272,1.15708804,111110.0,111100.0,0.00314]
[1756890751493,1.15907804,111110.0,111100.0,0.00519]
[1756890751700,1.18613433,111110.0,111100.0,0.00519]
[1756890752320,1.18613433,111110.0,111100.0,0.00205]
[1756890752456,1.18928433,111110.0,111100.0,0.00305]
[1756890752859,1.18928433,111110.0,111100.0,0.00505]
[1756890753695,1.18928433,111110.0,111100.0,0.003]
[1756890755079,0.55219809,111110.0,111100.0,0.003]
[1756890755275,1.18928433,111110.0,111100.0,0.003]
[1756890755927,0.54904809,111110.0,111100.0,0.00505]
[1756890756089,1.18613433,111110.0,111100.0,0.00505]
[1756890756293,1.18928433,111110.0,111100.0,0.00505]
[1756890757042,1.18613433,111110.0,111100.0,0.00505]
[1756890757617,0.97402197,111110.0,111100.0,0.00505]
[1756890758066,0.54904809,111110.0,111100.0,0.00505]
[1756890758308,0.97402197,111110.0,111100.0,0.185068]
[1756890758520,0.36705629,111110.0,111100.0,0.188208]
[1756890758729,0.79203017,111110.0,111100.0,0.188208]
[1756890760481,0.36705629,111110.0,111100.0,0.188208]
[1756890760625,0.79203017,111110.0,111100.0,0.188208]
[1756890762341,0.79405017,111110.0,111100.0,0.185068]
[1756890762480,0.79405017,111110.0,111100.0,0.188118]
[1756890768161,0.79405017,111110.0,111100.0,0.185068]
[1756890768610,0.36907629,111110.0,111100.0,0.188118]
[1756890768834,0.79405017,111110.0,111100.0,0.188118]
[1756890770171,0.79405017,111110.0,111100.0,0.185068]
[1756890771532,0.79700017,111110.0,111100.0,0.185068]
[1756890771742,0.02705629,111110.0,111100.0,0.28003399]
[1756890771942,0.42502063,111120.0,111110.0,0.1800018]
[1756890772164,4.675e-05,111120.0,111110.0,0.43276781]
[1756890772374,0.36709882,111120.0,111110.0,0.43051779]
[1756890772675,0.7920727,111120.0,111110.0,0.43051779]
[1756890772895,0.36709882,111120.0,111110.0,0.43051779]
[1756890773310,4.675e-05,111120.0,111110.0,0.43051779]
[1756890775140,4.675e-05,111120.0,111110.0,0.43351779]
[1756890775366,4.675e-05,111120.0,111110.0,0.44258459]
[1756890775587,4.675e-05,111120.0,111110.0,0.44658459]
[1756890775806,4.675e-05,111120.0,111110.0,0.48682132]
[1756890776249,4.675e-05,111120.0,111110.0,0.47775452]
[1756890776701,4.675e-05,111120.0,111110.0,0.43751779]
[1756890777963,0.42502063,111120.0,111110.0,0.43759779]
[1756890782464,4.675e-05,111120.0,111110.0,0.45853661]
[1756890782652,5.37e-06,111120.0,111110.0,0.93351049]
[1756890782918,5.37e-06,111120.0,111110.0,0.9605567]
[1756890783565,5.37e-06,111120.0,111110.0,0.53558282]
[1756890784206,5.37e-06,111120.0,111110.0,0.93558282]
[1756890802247,0.42798388,111140.0,111130.0,0.1799694]
[1756890802476,0.43000067,111140.0,111130.0,0.426975]
[1756890802695,4.679e-05,111140.0,111130.0,0.45082421]
[1756890802905,4.679e-05,111140.0,111130.0,0.69798421]
[1756890803142,4.679e-05,111140.0,111130.0,0.87786755]
[1756890803347,4.679e-05,111140.0,111130.0,0.87886755]
[1756890803980,4.679e-05,111140.0,111130.0,0.88086755]
[1756890805222,4.679e-05,111140.0,111130.0,0.92087809]
[1756890806568,0.00201679,111140.0,111130.0,0.91776809]
[1756890806778,0.00502679,111140.0,111130.0,0.91764809]
[1756890807159,0.00502679,111140.0,111130.0,0.76492809]
[1756890807533,0.00502679,111140.0,111130.0,0.91764809]
[1756890808572,0.43000067,111140.0,111130.0,0.91764809]
[1756890809170,0.42699067,111140.0,111130.0,0.91764809]
[1756890809940,0.00201679,111140.0,111130.0,0.91764809]
[1756890810135,0.00201679,111140.0,111130.0,0.76492809]
[1756890811649,0.00201679,111140.0,111130.0,0.91756809]
[1756890811863,0.42699067,111140.0,111130.0,0.91756809]
[1756890812134,0.42699067,111140.0,111130.0,0.89052475]
[1756890813158,0.42699067,111140.0,111130.0,0.73788475]
[1756890813377,0.42699067,111140.0,111130.0,0.89044475]
[1756890814746,0.42699067,111140.0,111130.0,0.89040475]
[1756890814944,0.42699067,111140.0,111130.0,0.73583475]
[1756890815144,0.43000067,111140.0,111130.0,0.31489593]
[1756890815347,0.43000067,111140.0,111130.0,0.42736539]
[1756890815568,0.60995388,111140.0,111130.0,0.42752539]
[1756890816133,0.94995388,111140.0,111130.0,0.003]
[1756890816338,0.94995388,111140.0,111130.0,0.15564]
[1756890818105,0.94995388,111140.0,111130.0,0.15568]
[1756890818325,0.97700316,111140.0,111130.0,0.15568]
[1756890818512,0.97700316,111140.0,111130.0,0.003]
[1756890818713,0.97700316,111140.0,111130.0,0.15572]
[1756890819680,1.50787482,111140.0,111130.0,0.15572]
[1756890821157,1.50787482,111140.0,111130.0,0.003]
[1756890821365,1.50787482,111140.0,111130.0,0.15568]
[1756890822593,1.66055482,111140.0,111130.0,0.15568]
[1756890824070,1.50787482,111140.0,111130.0,0.15568]
[1756890827578,1.50787482,111140.0,111130.0,0.003]
[1756890837202,1.66011482,111140.0,111130.0,0.003]
[1756890841613,1.65999482,111140.0,111130.0,0.003]
[1756890842072,1.50787482,111140.0,111130.0,0.003]
[1756890842830,1.66007482,111140.0,111130.0,0.003]
[1756890843631,1.50486482,111140.0,111130.0,0.00507]
[1756890843839,1.65706482,111140.0,111130.0,0.008]
[1756890844029,1.65706482,111140.0,111130.0,0.00507]
[1756890844240,1.66026482,111140.0,111130.0,0.00507]
[1756890844457,1.66026482,111140.0,111130.0,0.003]
[1756890845099,0.97723036,111120.0,111110.0,0.33868741]
[1756890845328,1.15721596,111120.0,111110.0,0.34075741]
[1756890846209,1.15721596,111120.0,111110.0,0.34375741]
[1756890846631,1.15721596,111120.0,111110.0,0.34775741]
[1756890850146,1.16219596,111120.0,111110.0,0.00907]
[1756890850352,1.16219596,111120.0,111110.0,0.15916]
[1756890850584,0.5249656,111120.0,111110.0,0.007]
[1756890850797,1.48081114,111120.0,111110.0,0.007]
[1756890852747,1.66002738,111120.0,111110.0,0.007]
[1756890870298,2.73632434,111120.0,111110.0,0.007]
[1756890870517,1.7804788,111120.0,111110.0,0.007]
[1756890871681,1.7804788,111120.0,111110.0,0.004]
[1756890871866,1.7804788,111120.0,111110.0,0.006]
[1756890872507,1.7804788,111120.0,111110.0,0.002]
[1756890872653,0.520018,111100.0,111090.0,0.15201429]
[1756890872867,1.15724836,111100.0,111090.0,0.00033429]
[1756890873083,1.15724836,111100.0,111090.0,0.00236429]
[1756890873470,1.19533274,111100.0,111090.0,0.00236429]
[1756890873645,1.19829274,111100.0,111090.0,0.00033429]
[1756890873924,1.19829274,111100.0,111090.0,0.00283273]
[1756890874123,1.19533274,111100.0,111090.0,0.00683273]
[1756890874328,1.19331274,111100.0,111090.0,0.00683273]
[1756890874885,1.19331274,111100.0,111090.0,0.00983273]
[1756890879246,1.19830274,111100.0,111090.0,0.00983273]
[1756890879481,1.19830274,111100.0,111090.0,0.16131273]
[1756890879863,1.19830274,111100.0,111090.0,0.00983273]
[1756890880552,1.19830274,111100.0,111090.0,0.16131273]
[1756890881462,1.19830274,111100.0,111090.0,0.00983273]
[1756890881669,0.98611638,111100.0,111090.0,0.16131273]
[1756890881880,0.98611638,111100.0,111090.0,0.00983273]
[1756890882085,0.98112638,111100.0,111090.0,0.16127273]
[1756890882285,0.98112638,111100.0,111090.0,0.34442693]
[1756890882702,0.98112638,111100.0,111090.0,0.34130693]
[1756890883864,0.98611638,111100.0,111090.0,0.34130693]
[1756890885336,0.98611638,111100.0,111090.0,0.18986693]
[1756890885642,0.98611638,111100.0,111090.0,0.34130693]
[1756890887097,0.98112638,111100.0,111090.0,0.34130693]
[1756890887308,0.98112638,111100.0,111090.0,0.34126693]
[1756890887993,0.98611638,111100.0,111090.0,0.34126693]
[1756890888630,0.98318638,111100.0,111090.0,0.34126693]
[1756890888839,0.98112638,111100.0,111090.0,0.34126693]
[1756890889278,0.80110838,111100.0,111090.0,0.34126693]
[1756890889509,0.98112638,111100.0,111090.0,0.34126693]
[1756890889937,0.80110838,111100.0,111090.0,0.34126693]
[1756890890119,0.98112638,111100.0,111090.0,0.18986693]
[1756890890553,0.98112638,111100.0,111090.0,0.34430693]
[1756890890773,0.98112638,111100.0,111090.0,0.34118693]
[1756890891516,0.98611638,111100.0,111090.0,0.34118693]
[1756890893099,0.98611638,111100.0,111090.0,0.34118693]
[1756890893781,0.64611638,111100.0,111090.0,0.34118693]
[1756890894208,0.98611638,111100.0,111090.0,0.34118693]
[1756890894410,0.98112638,111100.0,111090.0,0.34118693]
[1756890894789,0.98611638,111100.0,111090.0,0.34118693]
[1756890895736,0.98112638,111100.0,111090.0,0.34118693]
[1756890896899,0.98611638,111100.0,111090.0,0.34118693]
[1756890899533,0.98112638,111100.0,111090.0,0.34118693]
[1756890899717,0.98611638,111100.0,111090.0,0.34118693]
[1756890901297,0.98611638,111100.0,111090.0,0.33915693]
[1756890902510,0.79210346,111100.0,111090.0,0.43618292]
[1756890902960,0.79210346,111100.0,111090.0,0.43306292]
[1756890902961,0.80339465,111100.0,111090.0,0.43306292]
[1756890903155,0.80632465,111100.0,111090.0,0.43306292]
[1756890903769,0.80632465,111100.0,111090.0,0.28174292]
[1756890903973,0.80632465,111100.0,111090.0,0.43306292]
[1756890905301,0.79709346,111100.0,111090.0,0.43306292]
[1756890905516,0.79210346,111100.0,111090.0,0.43306292]
[1756890905741,0.36705946,111100.0,111090.0,0.43306292]
[1756890905951,0.79416346,111100.0,111090.0,0.43306292]
[1756890906171,0.79709346,111100.0,111090.0,0.43306292]
[1756890911319,1.41414415,111120.0,111110.0,0.3313218]
[1756890913105,1.23415855,111120.0,111110.0,0.3323218]
[1756890913339,1.41414415,111120.0,111110.0,0.3323218]
[1756890913584,1.99050815,111120.0,111110.0,0.15332]
[1756890914530,1.99050815,111120.0,111110.0,0.3333218]
[1756890915183,1.99050815,111120.0,111110.0,0.15332]
[1756890916770,1.99050815,111120.0,111110.0,0.3333218]
[1756890917636,1.83918815,111120.0,111110.0,0.3333218]
[1756890922501,1.65920255,111120.0,111110.0,0.3333218]
[1756890922721,1.22899855,111120.0,111110.0,0.3354518]
[1756890922940,1.22899855,111120.0,111110.0,0.43046779]
[1756890922941,0.36705455,111120.0,111110.0,0.43046779]
[1756890923154,0.765044,111120.0,111110.0,0.43046779]
[1756890923597,0.425044,111120.0,111110.0,0.49966779]
[1756890926253,0.79209512,111130.0,111120.0,0.1799856]
[1756890926473,0.79209512,111130.0,111120.0,0.18436542]
[1756890926695,0.79209512,111130.0,111120.0,0.1821156]
[1756890927202,0.79725512,111130.0,111120.0,0.1821156]
[1756890927421,0.02705112,111130.0,111120.0,0.27713159]
[1756890928080,0.765044,111140.0,111130.0,0.1799694]
[1756890928287,0.79209265,111140.0,111130.0,0.33562901]
[1756890928514,0.79209265,111140.0,111130.0,0.3333794]
[1756890928735,0.34,111140.0,111130.0,0.42839539]
[1756890928946,0.34,111140.0,111130.0,0.42739539]
[1756890929367,0.34004679,111140.0,111130.0,0.42739539]
[1756890929614,0.76509079,111140.0,111130.0,0.42739539]
[1756890929842,0.76509079,111140.0,111130.0,0.42429539]
[1756890930267,0.76709079,111140.0,111130.0,0.42429539]
[1756890930476,0.76709079,111140.0,111130.0,0.42529539]
[1756890930692,0.76509079,111140.0,111130.0,0.27401539]
[1756890930909,0.76509079,111140.0,111130.0,0.42529539]
[1756890931161,0.76509079,111140.0,111130.0,0.27401539]
[1756890931379,0.77025079,111140.0,111130.0,0.42529539]
[1756890932678,0.77025079,111140.0,111130.0,0.46613306]
[1756890936427,0.77025079,111140.0,111130.0,0.46609306]
[1756890940158,0.76509079,111140.0,111130.0,0.46609306]
[1756890940539,0.76509079,111140.0,111130.0,0.46927306]
[1756890940754,0.42509079,111140.0,111130.0,0.46927306]
[1756890941149,4.679e-05,111140.0,111130.0,0.47845052]
[1756890941557,0.31844705,111140.0,111130.0,0.31803306]
[1756890941921,0.31844705,111140.0,111130.0,0.46927306]
[1756890942062,0.31844705,111140.0,111130.0,0.46609306]
[1756890944392,0.31844705,111140.0,111130.0,0.86609306]
[1756890945699,0.31844705,111140.0,111130.0,0.86927306]
[1756890946712,0.31844705,111140.0,111130.0,0.86609306]
[1756890949276,4.679e-05,111140.0,111130.0,0.86609306]
[1756890949490,0.31844705,111140.0,111130.0,0.86609306]
[1756890952208,0.31844705,111140.0,111130.0,0.86927306]
[1756890954571,4.679e-05,111140.0,111130.0,0.86927306]
[1756890954754,0.31844705,111140.0,111130.0,0.86927306]
[1756890957585,0.31844705,111140.0,111130.0,0.86609306]
[1756890959578,4.679e-05,111140.0,111130.0,1.20861214]
[1756890959780,4.679e-05,111140.0,111130.0,0.94021188]
[1756890960017,4.679e-05,111140.0,111130.0,1.28565407]
[1756890960580,4.679e-05,111140.0,111130.0,1.28557407]
[1756890962316,4.679e-05,111140.0,111130.0,0.96717381]
[1756890964818,4.679e-05,111140.0,111130.0,1.28557407]
[1756890967155,4.679e-05,111140.0,111130.0,1.28239407]
[1756890967931,4.679e-05,111140.0,111130.0,1.28557407]
[1756890970767,4.679e-05,111140.0,111130.0,0.96395381]
[1756890970998,4.679e-05,111140.0,111130.0,1.28235407]
[1756890971903,4.679e-05,111140.0,111130.0,0.81283381]
[1756890972130,4.679e-05,111140.0,111130.0,0.96395381]
[1756890972813,4.679e-05,111140.0,111130.0,1.03311381]
[1756890974211,0.00509679,111140.0,111130.0,1.03098381]
[1756890974443,0.00509679,111140.0,111130.0,1.03307381]
[1756890974774,4.679e-05,111140.0,111130.0,1.03307381]
[1756890976529,4.679e-05,111140.0,111130.0,1.35147407]
[1756890977341,6.79e-06,111140.0,111130.0,1.03307381]
[1756890978354,6.79e-06,111140.0,111130.0,1.03615381]
[1756890978565,6.79e-06,111140.0,111130.0,1.03307381]
[1756890979876,6.79e-06,111140.0,111130.0,1.03615381]
[1756890980093,6.79e-06,111140.0,111130.0,1.35455407]
[1756890980292,6.79e-06,111140.0,111130.0,1.35147407]
[1756890985525,0.00505679,111140.0,111130.0,1.35147407]
[1756890985774,6.79e-06,111140.0,111130.0,2.4049009]
[1756890986000,0.21918191,111220.0,111210.0,0.17983994]
[1756890986220,0.20687508,111210.0,111190.0,0.2580259]
[1756890986426,0.32042026,111200.0,111190.0,0.34994189]
[1756890986685,0.66345026,111200.0,111190.0,0.50102189]
[1756890987277,0.66345026,111200.0,111190.0,0.54073933]
[1756890987935,0.34505,111200.0,111190.0,0.54073933]
[1756890988139,0.00505,111200.0,111190.0,0.86122959]
[1756890988344,0.00505,111200.0,111190.0,0.86222959]
[1756890989000,0.32345026,111200.0,111190.0,0.57085915]
[1756890990070,0.32345026,111200.0,111190.0,0.57185915]
[1756890990281,0.32345026,111200.0,111190.0,0.96972915]
[1756890990507,0.32345026,111200.0,111190.0,0.81868915]
[1756890990701,0.32345026,111200.0,111190.0,0.96972915]
[1756890990916,0.32345026,111200.0,111190.0,0.94269933]
[1756890991132,0.64185052,111200.0,111190.0,0.94269933]
[1756890999112,0.32345026,111200.0,111190.0,0.94265933]
[1756890999371,0.00308683,111220.0,111200.0,0.17985611]
[1756890999580,0.65844709,111220.0,111210.0,0.42500392]
[1756890999792,0.65844709,111220.0,111210.0,0.42275593]
[1756890999996,0.66050709,111220.0,111210.0,0.42275593]
[1756891000203,0.66354709,111220.0,111210.0,0.42275593]
[1756891000616,0.66554709,111220.0,111210.0,0.42275593]
[1756891000830,0.98394735,111220.0,111210.0,0.42275593]
[1756891001814,0.34714683,111220.0,111210.0,0.42275593]
[1756891002022,0.98394735,111220.0,111210.0,0.42275593]
[1756891002453,0.98194735,111220.0,111210.0,0.42275593]
[1756891002665,0.98394735,111220.0,111210.0,0.42275593]
[1756891002875,0.98394735,111220.0,111210.0,0.42475593]
[1756891003082,0.98194735,111220.0,111210.0,0.42475593]
[1756891003294,0.98194735,111220.0,111210.0,0.42675593]
[1756891003516,0.34514683,111220.0,111210.0,0.42675593]
[1756891003726,0.76921077,111220.0,111210.0,0.42675593]
[1756891005923,0.76921077,111220.0,111210.0,0.42475593]
[1756891006146,0.76921077,111220.0,111210.0,0.42275593]
[1756891006366,0.76921077,111220.0,111210.0,0.42575593]
[1756891006582,0.76921077,111220.0,111210.0,0.42375593]
[1756891006801,0.76921077,111220.0,111210.0,0.27275593]
[1756891007047,0.94903454,111220.0,111210.0,0.42471593]
[1756891007224,0.94903454,111220.0,111210.0,0.42571593]
[1756891007468,0.76921077,111220.0,111210.0,0.42571593]
[1756891007921,0.76921077,111220.0,111210.0,0.42471593]
[1756891009235,0.76921077,111220.0,111210.0,0.27175593]
[1756891009454,0.76921077,111220.0,111210.0,0.42271593]
[1756891010101,0.76921077,111220.0,111210.0,0.42471593]
[1756891011077,0.76921077,111220.0,111210.0,0.42571593]
[1756891013357,0.94903454,111220.0,111210.0,0.15396]
[1756891013592,0.94903454,111220.0,111210.0,0.33379994]
[1756891014431,0.94903454,111220.0,111210.0,0.33279994]
[1756891015413,0.94903454,111220.0,111210.0,0.33079994]
[1756891018471,0.5249706,111220.0,111210.0,0.33079994]
[1756891018658,0.94903454,111220.0,111210.0,0.33079994]
[1756891021021,0.76921077,111220.0,111210.0,0.33079994]
[1756891021234,0.76411077,111220.0,111210.0,0.42478593]
[1756891021576,4.683e-05,111220.0,111210.0,0.42797593]
[1756891021994,4.683e-05,111220.0,111210.0,0.44891475]
[1756891023039,4.683e-05,111220.0,111210.0,0.45091475]
[1756891023799,4.683e-05,111220.0,111210.0,0.44991475]
[1756891024182,4.683e-05,111220.0,111210.0,0.45291475]
[1756891024328,4.683e-05,111220.0,111210.0,0.85291475]
[1756891025050,4.683e-05,111220.0,111210.0,0.85191475]
[1756891025255,4.683e-05,111220.0,111210.0,0.85391475]
[1756891030010,4.683e-05,111220.0,111210.0,1.32789869]
[1756891031342,1e-08,111220.0,111210.0,1.32789869]
[1756891031586,1e-08,111220.0,111210.0,1.74183869]
[1756891031802,1e-08,111220.0,111210.0,1.74544123]
[1756891034447,1e-08,111230.0,111220.0,1.06482653]
[1756891034668,1e-08,111230.0,111220.0,1.37983252]
[1756891034852,1e-08,111230.0,111220.0,1.38180252]
[1756891035097,1e-08,111230.0,111220.0,1.78180252]
[1756891036514,1e-08,111230.0,111220.0,1.78480252]
[1756891036950,1e-08,111230.0,111220.0,1.78780252]
[1756891037775,1e-08,111230.0,111220.0,1.81174252]
[1756891038185,1e-08,111230.0,111220.0,1.85222304]
[1756891040220,1e-08,111230.0,111220.0,1.70138304]
[1756891040431,1e-08,111230.0,111220.0,1.85222304]
[1756891040647,1e-08,111230.0,111220.0,1.85582483]
[1756891043734,1e-08,111230.0,111220.0,1.83188483]
[1756891044176,1e-08,111230.0,111220.0,1.40782089]
[1756891044365,1e-08,111230.0,111220.0,1.83188483]
[1756891054446,1e-08,111230.0,111220.0,1.91286001]
[1756891054906,1e-08,111230.0,111220.0,1.76202001]
[1756891055153,1e-08,111230.0,111220.0,1.90969001]
[1756891055154,0.00530001,111230.0,111220.0,1.90969001]
[1756891055391,0.00530001,111230.0,111220.0,1.82871483]
[1756891055754,0.00212001,111230.0,111220.0,1.82871483]
[1756891055960,1e-08,111230.0,111220.0,1.82871483]
[1756891057335,0.00530001,111230.0,111220.0,1.82871483]
[1756891057591,0.00530001,111230.0,111220.0,1.90969001]
[1756891058110,1e-08,111230.0,111220.0,1.90969001]
[1756891058537,1e-08,111230.0,111220.0,1.91282001]
[1756891058962,1e-08,111240.0,111230.0,0.72481036]
[1756891059184,1e-08,111240.0,111230.0,0.97069635]
[1756891059391,1e-08,111240.0,111230.0,1.39371153]
[1756891059808,1e-08,111240.0,111230.0,1.79371153]
[1756891060012,1e-08,111240.0,111230.0,1.79571153]
[1756891060590,1e-08,111240.0,111230.0,1.79371153]
[1756891060805,1e-08,111240.0,111230.0,1.79771153]
[1756891061845,1e-08,111240.0,111230.0,1.80531312]
[1756891062259,1e-08,111240.0,111230.0,1.80131312]
[1756891062461,1e-08,111240.0,111230.0,1.80431312]
[1756891062668,1e-08,111240.0,111230.0,1.80114312]
[1756891062868,0.0002,111260.0,111250.0,0.22977528]
[1756891063073,0.00066798,111260.0,111250.0,0.54161127]
[1756891063257,0.00264798,111260.0,111250.0,0.54161127]
[1756891063458,0.00264798,111260.0,111250.0,0.94161127]
[1756891063673,0.00264798,111260.0,111250.0,0.85746254]
[1756891063838,0.42671192,111260.0,111250.0,0.85746254]
[1756891064046,0.42671192,111260.0,111250.0,1.00922254]
[1756891064650,0.42671192,111260.0,111250.0,1.01022254]
[1756891064854,0.42808192,111260.0,111250.0,1.01022254]
[1756891065698,0.32175826,111260.0,111250.0,1.01022254]
[1756891066338,0.32175826,111260.0,111250.0,0.85946254]
[1756891066552,0.00401798,111260.0,111250.0,1.01022254]
[1756891066772,0.32175826,111260.0,111250.0,1.01022254]
[1756891067201,0.32175826,111260.0,111250.0,1.01934868]
[1756891067433,0.00401798,111260.0,111250.0,1.01934868]
[1756891067648,0.32175826,111260.0,111250.0,1.01934868]
[1756891068513,0.00401798,111260.0,111250.0,1.01934868]
[1756891070053,0.00264798,111260.0,111250.0,1.02138868]
[1756891070707,0.00264798,111260.0,111250.0,1.01934868]
[1756891072157,0.00264798,111260.0,111250.0,1.02138868]
[1756891072370,0.00264798,111260.0,111250.0,1.02455868]
[1756891072579,0.00264798,111260.0,111250.0,1.34229896]
[1756891072747,0.00066798,111260.0,111250.0,1.02455868]
[1756891072976,0.00263798,111260.0,111250.0,1.02455868]
[1756891075331,0.00263798,111260.0,111250.0,0.86858868]
[1756891075549,0.32037826,111260.0,111250.0,1.02138868]
[1756891076151,0.00263798,111260.0,111250.0,1.02138868]
[1756891076377,0.32037826,111260.0,111250.0,1.02138868]
[1756891076585,0.00263798,111260.0,111250.0,1.02138868]
[1756891076805,0.32037826,111260.0,111250.0,1.02138868]
[1756891077020,1e-08,111260.0,111250.0,1.36323778]
[1756891077257,0.0002,111270.0,111260.0,0.22975912]
[1756891077463,0.00028412,111270.0,111260.0,0.79334539]
[1756891077683,0.00028412,111270.0,111260.0,0.40786029]
[1756891077945,0.00028412,111270.0,111260.0,0.55862029]
[1756891078199,0.00028412,111270.0,111260.0,0.98562862]
[1756891078649,0.00028412,111270.0,111260.0,1.00656744]
[1756891079084,0.00028412,111270.0,111260.0,1.00756744]
[1756891079518,0.00028412,111270.0,111260.0,1.32530772]
[1756891080167,0.0002,111280.0,111270.0,0.54748324]
[1756891080392,0.0002,111280.0,111270.0,0.79536923]
[1756891080607,0.0002,111280.0,111270.0,0.87634441]
[1756891081264,0.0002,111280.0,111270.0,0.55860413]
[1756891081913,0.0002,111280.0,111270.0,0.95860413]
[1756891082794,0.0002,111280.0,111270.0,0.98560964]
[1756891083268,0.0002,111280.0,111270.0,0.98760964]
[1756891083946,0.0002,111280.0,111270.0,1.32628874]